lending/lending_fUSD_20240807
["ID","MTS","AMOUNT","RATE_DAILY","PERIOD"]
[334387178,1723020363820,-150.0,0.00010383,2]
[334387179,1723020363840,-335.364,0.00010383,2]
[334387180,1723020363861,-300.0,0.00010389,2]
[334387181,1723020363888,-163.18876899,0.0001039,2]
[334387182,1723020363911,-1413.47969303,0.0001039,2]
[334387183,1723020368771,-1392.65780697,0.0001039,2]
[334387184,1723020368794,-1000.0,0.0001039,2]
[334387185,1723020368817,-429.84,0.00010435,2]
[334387186,1723020368840,-17177.50219303,0.00010483,2]
[334387187,1723020373192,-20000.0,0.00010483,2]
[334387188,1723020385232,-181.75852113,0.0001,2]
[334387189,1723020385253,-449.38282127,0.0001,2]
[334387190,1723020390709,312.21614804,0.0001,2]
[334387191,1723020393059,170.43469918,0.0001,2]
[334387192,1723020398705,312.21614804,0.0001,2]
[334387193,1723020399106,1050.25607038,0.0001,2]
[334387194,1723020406137,-95.38266567,0.00010483,2]
[334387195,1723020406161,-1000.0,0.000105,2]
[334387196,1723020406183,-5641.0,0.00010576,2]
[334387197,1723020406204,-200.0,0.00010873,2]
[334387198,1723020406224,-3526.35292629,0.00010877,2]
[334387201,1723020445416,386.85,8.219e-05,2]
[334387206,1723020562924,-412.97957434,0.0001,2]
[334387207,1723020562945,-288.46186893,0.0001,2]
[334387208,1723020562965,-299.86038507,0.0001,2]
[334387209,1723020562991,-1050.25607038,0.0001,2]
[334387210,1723020563036,-400.0,0.00010036,2]
[334387211,1723020563078,-13435.44210128,0.00010036,2]
[334387213,1723020591912,-3727.0205032,0.00010036,2]
[334387214,1723020591936,-15972.9794968,0.00010041,2]
[334387215,1723020630822,150.0,0.00023599,120]
[334387217,1723020631608,-170.43469918,0.00010036,2]
[334387218,1723020631618,-181.75852113,0.00010036,2]
[334387219,1723020631627,-162.66461313,0.00010036,2]
[334387220,1723020631638,-449.38282127,0.00010036,2]
[334387221,1723020631647,-637.14509529,0.00010041,2]
[334387222,1723020631658,-285.864197,0.00010041,2]
[334387223,1723020631673,-7004.01121091,0.00010041,2]
[334387224,1723020631683,-300.0,0.00010309,2]
[334387225,1723020631693,-746.02,0.0001031,2]
[334387226,1723020631705,-386.85,0.00010481,2]
[334387227,1723020631715,-1403.09878197,0.0001087,2]
[334387228,1723020631731,-979.34980505,0.0001087,2]
[334387229,1723020631742,-5649.28327191,0.0001087,2]
[334387230,1723020631753,-75541.02751057,0.0001087,2]
[334387231,1723020631763,-583.11086,0.00010877,2]
[334387232,1723020631772,-150.0,0.00010879,2]
[334387233,1723020631782,-207508.17498898,0.0001088,2]
[334387234,1723020631794,-401.44091038,0.0001088,2]
[334387235,1723020631805,-6689.27600413,0.0001088,2]
[334387236,1723020631829,-10267.24643384,0.0001088,2]
[334387237,1723020631841,-3230.68631558,0.0001088,2]
[334387238,1723020631853,-2488.32184878,0.0001088,2]
[334387239,1723020631864,-1358.29154305,0.0001088,2]
[334387240,1723020631880,-470.8308703,0.0001088,2]
[334387241,1723020631891,-382.31751455,0.0001088,2]
[334387261,1723020635125,-7151.0,0.0001088,2]
[334387281,1723020637729,-5808.32989986,0.0001088,2]
[334387283,1723020637740,-2709.20962988,0.0001088,2]
[334387284,1723020637787,-1662.12038026,0.0001088,2]
[334387285,1723020637799,-974.16207443,0.0001088,2]
[334387286,1723020637810,-399.08923112,0.0001088,2]
[334387287,1723020637856,-8591.75981976,0.0001088,2]
[334387288,1723020637916,-1249.1832568,0.0001088,2]
[334387289,1723020638031,-1036.80452981,0.0001088,2]
[334387290,1723020638043,-70241.64892783,0.0001088,2]
[334387291,1723020638054,-301.11415239,0.0001088,2]
[334387421,1723020639692,-954.000003,0.0001088,2]
[334387442,1723020640458,-793.762146,0.0001088,2]
[334387443,1723020640471,-499.9996419,0.0001088,2]
[334387444,1723020640483,-26462.32836835,0.0001088,2]
[334387446,1723020640494,-5427.19204843,0.0001088,2]
[334387447,1723020640506,-1018826.64870559,0.0001088,2]
[334387449,1723020640516,-155.0,0.0001089,2]
[334387450,1723020640526,-155.83746625,0.0001089,2]
[334387451,1723020640536,-2077.13426972,0.0001089,2]
[334387452,1723020640545,-164.91,0.000109,2]
[334387453,1723020640554,-298.07570667,0.00010958,2]
[334387454,1723020640564,-500.0,0.00010958,2]
[334387455,1723020640573,-290.26181828,0.00010958,2]
[334387456,1723020640582,-594.774163,0.00010958,2]
[334387458,1723020640591,-526.30586485,0.00010958,2]
[334387460,1723020640601,-500.0,0.00010958,2]
[334387462,1723020640610,-500.0,0.00010958,2]
[334387463,1723020640620,-500.0,0.00010958,2]
[334387465,1723020640629,-500.0,0.00010958,2]
[334387466,1723020640640,-500.0,0.00010958,2]
[334387468,1723020640650,-219.72265511,0.00010958,2]
[334387469,1723020640660,-500.0,0.00010958,2]
[334387470,1723020640671,-183.24346733,0.00010958,2]
[334387471,1723020640681,-500.0,0.00010958,2]
[334387472,1723020640690,-386.92354653,0.00010958,2]
[334387473,1723020640699,-500.0,0.00010958,2]
[334387474,1723020640710,-500.0,0.00010958,2]
[334387475,1723020640719,-500.0,0.00010958,2]
[334387476,1723020640729,-500.0,0.00010958,2]
[334387477,1723020640739,-500.0,0.00010958,2]
[334387478,1723020640749,-500.0,0.00010958,2]
[334387479,1723020640760,-500.0,0.00010958,2]
[334387480,1723020640769,-500.0,0.00010958,2]
[334387482,1723020640778,-500.0,0.00010958,2]
[334387484,1723020640788,-493.4,0.00010958,2]
[334387486,1723020640799,-500.0,0.00010958,2]
[334387491,1723020641140,-500.0,0.00010958,2]
[334387492,1723020641151,-500.0,0.00010958,2]
[334387493,1723020641162,-500.0,0.00010958,2]
[334387494,1723020641175,-500.0,0.00010958,2]
[334387495,1723020641185,-573.26,0.00010958,2]
[334387496,1723020641196,-500.0,0.00010958,2]
[334387497,1723020641209,-500.0,0.00010958,2]
[334387498,1723020641219,-500.0,0.00010958,2]
[334387499,1723020641229,-500.0,0.00010958,2]
[334387500,1723020641239,-500.0,0.00010958,2]
[334387501,1723020641251,-500.0,0.00010958,2]
[334387502,1723020641260,-500.0,0.00010958,2]
[334387503,1723020641270,-215.43,0.00010958,2]
[334387504,1723020641280,-500.0,0.00010958,2]
[334387505,1723020641290,-500.0,0.00010958,2]
[334387506,1723020641300,-500.0,0.00010958,2]
[334387507,1723020641310,-500.0,0.00010958,2]
[334387508,1723020641319,-500.0,0.00010958,2]
[334387509,1723020641329,-500.0,0.00010958,2]
[334387510,1723020641340,-216.48,0.00010958,2]
[334387511,1723020641350,-500.0,0.00010958,2]
[334387512,1723020641359,-500.0,0.00010958,2]
[334387513,1723020641372,-500.0,0.00010958,2]
[334387514,1723020641382,-500.0,0.00010958,2]
[334387515,1723020641392,-500.0,0.00010958,2]
[334387516,1723020641402,-607.51,0.00010958,2]
[334387517,1723020641411,-500.0,0.00010958,2]
[334387518,1723020641421,-500.0,0.00010958,2]
[334387519,1723020641431,-500.0,0.00010958,2]
[334387520,1723020641440,-500.0,0.00010958,2]
[334387521,1723020641450,-500.0,0.00010958,2]
[334387522,1723020641462,-500.0,0.00010958,2]
[334387523,1723020641472,-500.0,0.00010958,2]
[334387524,1723020641482,-500.0,0.00010958,2]
[334387525,1723020641491,-500.0,0.00010958,2]
[334387526,1723020641502,-440.05,0.00010958,2]
[334387527,1723020641511,-500.0,0.00010958,2]
[334387528,1723020641521,-500.0,0.00010958,2]
[334387529,1723020641531,-500.0,0.00010958,2]
[334387530,1723020641541,-500.0,0.00010958,2]
[334387531,1723020641551,-500.0,0.00010958,2]
[334387532,1723020641561,-500.0,0.00010958,2]
[334387533,1723020641571,-500.0,0.00010958,2]
[334387534,1723020641580,-500.0,0.00010958,2]
[334387535,1723020641590,-500.0,0.00010958,2]
[334387536,1723020641600,-500.0,0.00010958,2]
[334387537,1723020641610,-500.59,0.00010958,2]
[334387538,1723020641621,-412.95,0.00010958,2]
[334387539,1723020641631,-500.0,0.00010958,2]
[334387540,1723020641641,-500.0,0.00010958,2]
[334387541,1723020641650,-500.0,0.00010958,2]
[334387542,1723020641660,-500.0,0.00010958,2]
[334387543,1723020641670,-500.0,0.00010958,2]
[334387544,1723020641680,-500.0,0.00010958,2]
[334387545,1723020641689,-500.0,0.00010958,2]
[334387546,1723020641699,-500.0,0.00010958,2]
[334387547,1723020641712,-500.0,0.00010958,2]
[334387548,1723020641722,-568.74,0.00010958,2]
[334387549,1723020641732,-500.0,0.00010958,2]
[334387550,1723020641741,-500.0,0.00010958,2]
[334387551,1723020641751,-500.0,0.00010958,2]
[334387552,1723020641760,-500.0,0.00010958,2]
[334387553,1723020641770,-495.6235561,0.00010958,2]
[334387554,1723020641779,-500.0,0.00010958,2]
[334387555,1723020641789,-500.0,0.00010958,2]
[334387556,1723020641798,-500.0,0.00010958,2]
[334387557,1723020641808,-500.0,0.00010958,2]
[334387558,1723020641818,-500.0,0.00010958,2]
[334387559,1723020641828,-500.0,0.00010958,2]
[334387560,1723020641838,-616.95,0.00010958,2]
[334387561,1723020641847,-500.0,0.00010958,2]
[334387562,1723020641858,-500.0,0.00010958,2]
[334387563,1723020641868,-500.0,0.00010958,2]
[334387564,1723020641878,-500.0,0.00010958,2]
[334387565,1723020641897,-500.0,0.00010958,2]
[334387566,1723020641907,-500.0,0.00010958,2]
[334387567,1723020641916,-500.0,0.00010958,2]
[334387568,1723020641925,-500.0,0.00010958,2]
[334387569,1723020641935,-500.0,0.00010958,2]
[334387570,1723020641944,-500.0,0.00010958,2]
[334387571,1723020641954,-500.0,0.00010958,2]
[334387572,1723020641967,-500.0,0.00010958,2]
[334387573,1723020641976,-500.0,0.00010958,2]
[334387574,1723020641986,-500.0,0.00010958,2]
[334387575,1723020641995,-500.0,0.00010958,2]
[334387576,1723020642004,-500.0,0.00010958,2]
[334387577,1723020642014,-397.98,0.00010958,2]
[334387578,1723020642023,-500.0,0.00010958,2]
[334387579,1723020642032,-500.0,0.00010958,2]
[334387580,1723020642041,-500.0,0.00010958,2]
[334387581,1723020642051,-500.0,0.00010958,2]
[334387582,1723020642060,-500.0,0.00010958,2]
[334387583,1723020642069,-500.0,0.00010958,2]
[334387584,1723020642079,-508.97,0.00010958,2]
[334387585,1723020642088,-500.0,0.00010958,2]
[334387586,1723020642097,-500.0,0.00010958,2]
[334387587,1723020642107,-500.0,0.00010958,2]
[334387588,1723020642116,-500.0,0.00010958,2]
[334387589,1723020642125,-500.0,0.00010958,2]
[334387590,1723020642134,-463.16,0.00010958,2]
[334387591,1723020642144,-353.15270809,0.00010958,2]
[334387592,1723020642153,-625.0,0.00010958,2]
[334387593,1723020642163,-625.0,0.00010958,2]
[334387594,1723020642175,-625.0,0.00010958,2]
[334387595,1723020642185,-625.0,0.00010958,2]
[334387596,1723020642194,-625.0,0.00010958,2]
[334387597,1723020642204,-625.0,0.00010958,2]
[334387598,1723020642222,-625.0,0.00010958,2]
[334387599,1723020642232,-625.0,0.00010958,2]
[334387600,1723020642242,-625.0,0.00010958,2]
[334387601,1723020642252,-625.0,0.00010958,2]
[334387602,1723020642262,-625.0,0.00010958,2]
[334387603,1723020642271,-625.0,0.00010958,2]
[334387604,1723020642280,-625.0,0.00010958,2]
[334387605,1723020642290,-625.0,0.00010958,2]
[334387606,1723020642299,-595.43165762,0.00010958,2]
[334387607,1723020642309,-500.0,0.00010958,2]
[334387609,1723020642319,-500.0,0.00010958,2]
[334387610,1723020642328,-500.0,0.00010958,2]
[334387612,1723020642339,-500.0,0.00010958,2]
[334387613,1723020642348,-504.45,0.00010958,2]
[334387615,1723020642358,-500.0,0.00010958,2]
[334387616,1723020642367,-500.0,0.00010958,2]
[334387618,1723020642376,-500.0,0.00010958,2]
[334387620,1723020642386,-500.0,0.00010958,2]
[334387622,1723020642395,-617.57,0.00010958,2]
[334387624,1723020642405,-500.0,0.00010958,2]
[334387626,1723020642414,-500.0,0.00010958,2]
[334387628,1723020642424,-500.0,0.00010958,2]
[334387629,1723020642433,-500.0,0.00010958,2]
[334387630,1723020642442,-524.43954213,0.00010958,2]
[334387631,1723020642451,-500.0,0.00010958,2]
[334387632,1723020642464,-500.0,0.00010958,2]
[334387633,1723020642474,-500.0,0.00010958,2]
[334387635,1723020642483,-500.0,0.00010958,2]
[334387636,1723020642492,-552.43,0.00010958,2]
[334387637,1723020642501,-500.0,0.00010958,2]
[334387638,1723020642510,-500.0,0.00010958,2]
[334387640,1723020642520,-500.0,0.00010958,2]
[334387641,1723020642530,-500.0,0.00010958,2]
[334387642,1723020642540,-500.0,0.00010958,2]
[334387643,1723020642549,-500.0,0.00010958,2]
[334387644,1723020642559,-500.0,0.00010958,2]
[334387645,1723020642568,-500.0,0.00010958,2]
[334387646,1723020642578,-451.08,0.00010958,2]
[334387647,1723020642589,-500.0,0.00010958,2]
[334387648,1723020642599,-353.95,0.00010958,2]
[334387649,1723020642608,-500.0,0.00010958,2]
[334387650,1723020642618,-500.0,0.00010958,2]
[334387651,1723020642628,-500.0,0.00010958,2]
[334387652,1723020642638,-500.0,0.00010958,2]
[334387653,1723020642647,-522.9,0.00010958,2]
[334387654,1723020642657,-500.0,0.00010958,2]
[334387655,1723020642666,-571.28177874,0.00010958,2]
[334387656,1723020642676,-500.0,0.00010958,2]
[334387657,1723020642687,-500.0,0.00010958,2]
[334387658,1723020642697,-500.0,0.00010958,2]
[334387659,1723020642707,-500.0,0.00010958,2]
[334387660,1723020642726,-394.88,0.00010958,2]
[334387661,1723020642736,-250.0,0.00010959,2]
[334387662,1723020642746,-179.1998893,0.00010973,2]
[334387663,1723020642755,-8294.0,0.00010986,2]
[334387664,1723020642764,-1765585.2296952,0.0001099,3]
[334387665,1723020642774,-76653.6506636,0.00010992,2]
[334387666,1723020642783,-69734.5419577,0.00010992,2]
[334387667,1723020642792,-7615.43530182,0.00010998,2]
[334387668,1723020642801,-625.0,0.00010998,2]
[334387669,1723020642810,-96764.53659065,0.00010999,2]
[334387670,1723020642820,-792.54,0.00010999,2]
[334387671,1723020642829,-625.0,0.00010999,2]
[334387672,1723020642838,-625.0,0.00010999,2]
[334387673,1723020642847,-625.0,0.00010999,2]
[334387674,1723020642856,-625.0,0.00010999,2]
[334387675,1723020642865,-625.0,0.00010999,2]
[334387676,1723020642875,-625.0,0.00010999,2]
[334387678,1723020642884,-625.0,0.00010999,2]
[334387680,1723020642893,-625.0,0.00010999,2]
[334387682,1723020642903,-625.0,0.00010999,2]
[334387684,1723020642912,-83976.5577811,0.00011,2]
[334387686,1723020642922,-5353602.72636653,0.00011,2]
[334387689,1723020642939,-242178.66811579,0.00011,2]
[334387690,1723020642952,-1748.56626615,0.00011,2]
[334387691,1723020642965,-1120.0285415,0.00011,2]
[334387693,1723020643451,-317.994,0.00011,2]
[334387694,1723020643464,-1206.83348292,0.00011,2]
[334387695,1723020643589,-1137.78633722,0.00011,2]
[334387696,1723020643653,-307.18547642,0.00011,2]
[334387697,1723020643664,-968.00000004,0.00011,2]
[334387698,1723020643676,-1052.727132,0.00011,2]
[334387699,1723020643687,-4640.0,0.00011,2]
[334387700,1723020643699,-8703.20360957,0.00011,2]
[334387703,1723020721888,-2006.26,0.00010425,2]
[334387704,1723020721910,-4547.74,0.00010464,2]
[334387705,1723020805853,558.42,9.581e-05,2]
[334387706,1723020839164,-6851.0,9.936e-05,2]
[334387709,1723020944057,366.16,8.219e-05,2]
[334387710,1723020946873,-0.0773,9.936e-05,2]
[334387711,1723020946895,-11155.9227,9.936e-05,2]
[334387712,1723021011724,6497.06,9.581e-05,2]
[334387713,1723021041888,11156.29112274,9.581e-05,2]
[334387714,1723021069952,249.86067151,9.581e-05,2]
[334387715,1723021076687,227.67484022,9.581e-05,2]
[334387716,1723021085132,202.15,8.219e-05,2]
[334387717,1723021087720,760.1334565,9.581e-05,2]
[334387718,1723021095998,10385.59219236,9.581e-05,2]
[334387719,1723021106327,401.16988804,0.000246,30]
[334387720,1723021129127,-200.0,9.63e-05,2]
[334387721,1723021129151,-660.7941,9.836e-05,2]
[334387722,1723021129174,-630.8651,9.836e-05,2]
[334387723,1723021129199,-740.06,0.00010384,2]
[334387724,1723021129232,-740.06,0.00010387,2]
[334387725,1723021129257,-740.06,0.0001039,2]
[334387726,1723021129280,-740.06,0.00010393,2]
[334387727,1723021129304,-740.06,0.00010395,2]
[334387728,1723021129327,-740.06,0.00010398,2]
[334387729,1723021129352,-299.99,0.00010401,2]
[334387730,1723021129376,-740.06,0.00010401,2]
[334387731,1723021129400,-1243.5,0.00010403,2]
[334387732,1723021129424,-740.06,0.00010403,2]
[334387733,1723021129448,-740.06,0.00010406,2]
[334387734,1723021129474,-740.06,0.00010409,2]
[334387735,1723021129498,-740.06,0.00010412,2]
[334387736,1723021129522,-740.06,0.00010414,2]
[334387737,1723021129546,-740.06,0.00010417,2]
[334387738,1723021129569,-740.06,0.0001042,2]
[334387739,1723021129592,-740.06,0.00010423,2]
[334387740,1723021129616,-740.06,0.00010425,2]
[334387741,1723021129639,-400.0,0.00010427,2]
[334387742,1723021129662,-740.06,0.00010428,2]
[334387743,1723021129685,-740.06,0.00010431,2]
[334387744,1723021129711,-740.06,0.00010434,2]
[334387745,1723021129735,-150.0,0.00010436,2]
[334387746,1723021130083,2353.7108,0.00010387,2]
[334387747,1723021130602,-175.98834394,0.00010387,2]
[334387748,1723021142771,162.66461313,0.00010387,2]
[334387749,1723021154103,170.43469918,0.00010387,2]
[334387750,1723021155948,1641.0,0.00010435,2]
[334387751,1723021160113,1050.25607038,0.00010387,2]
[334387752,1723021160683,16799.65627337,0.00010387,2]
[334387753,1723021160705,3200.34372663,0.00010387,2]
[334387754,1723021161024,581.58297496,0.00010336,2]
[334387755,1723021162340,181.75852113,0.00010387,2]
[334387756,1723021163108,170.43469918,0.00010387,2]
[334387757,1723021169266,412.97957434,0.00010387,2]
[334387758,1723021171790,449.38282127,0.00010387,2]
[334387759,1723021174966,299.86038507,0.00010387,2]
[334387760,1723021175250,5129.49,0.00010149,2]
[334387761,1723021180795,227.67484022,0.00010387,2]
[334387762,1723021184653,680.0,0.00010221,2]
[334387763,1723021185749,399.13482193,0.00010387,2]
[334387764,1723021190959,299.86038507,0.00010387,2]
[334387765,1723021193696,227.67484022,0.00010387,2]
[334387766,1723021229391,169.47,0.00010076,2]
[334387767,1723021235828,1509.0,0.00010384,2]
[334387768,1723021244598,395.92,0.00010075,2]
[334387769,1723021257116,1050.25607038,0.00010387,2]
[334387770,1723021260878,181.75852113,0.00010384,2]
[334387771,1723021277115,170.43469918,0.00010384,2]
[334387772,1723021282270,412.97957434,0.00010384,2]
[334387773,1723021284433,250.0,0.00010081,2]
[334387774,1723021287950,299.86038507,0.00010384,2]
[334387775,1723021289675,944.17,0.00010081,2]
[334387776,1723021291303,449.38282127,0.00010384,2]
[334387777,1723021313696,227.67484022,0.00010384,2]
[334387778,1723021321305,449.38282127,0.00010384,2]
[334387779,1723021327335,602.0,0.00010354,2]
[334387780,1723021347775,162.66461313,0.00010384,2]
[334387781,1723021351937,193.75,0.00010077,2]
[334387782,1723021355395,169.7,8.051e-05,2]
[334387783,1723021357630,101.41806399,0.00010384,2]
[334387784,1723021357652,948.83800639,0.00010384,2]
[334387785,1723021359130,170.43469918,0.00010384,2]
[334387786,1723021361367,172.47,0.00010064,2]
[334387787,1723021362989,162.66461313,0.00010384,2]
[334387788,1723021367780,412.97957434,0.00010077,2]
[334387789,1723021368360,181.75852113,0.00010077,2]
[334387790,1723021395981,299.86038507,0.00010077,2]
[334387791,1723021428711,366.83,8.219e-05,2]
[334387792,1723021434317,449.38282127,0.00010077,2]
[334387793,1723021440799,412.97957434,0.00010077,2]
[334387794,1723021445884,1050.25607038,0.00010077,2]
[334387795,1723021459368,231.64918472,0.00010077,2]
[334387796,1723021459641,170.43469918,0.00010077,2]
[334387797,1723021470796,162.66461313,0.00010077,2]
[334387798,1723021475192,14806.79723774,0.00010062,2]
[334387799,1723021475216,2718.94276226,0.00010062,2]
[334387800,1723021478420,-740.06,0.00010436,2]
[334387801,1723021478443,-366.83,0.00010479,2]
[334387802,1723021478468,-5500.0,0.000105,3]
[334387803,1723021478489,-300.0,0.00010599,2]
[334387804,1723021478510,-4787.11,0.000106,3]
[334387805,1723021497985,299.86038507,0.00010077,2]
[334387806,1723021511022,299.86038507,0.00010077,2]
[334387807,1723021531555,150.0,0.00024743,120]
[334387808,1723021533646,1050.25607038,0.00010077,2]
[334387809,1723021537327,449.38282127,0.00010077,2]
[334387810,1723021545809,412.97957434,0.00010077,2]
[334387811,1723021553640,170.43469918,0.00010077,2]
[334387812,1723021564296,162.66461313,0.00010077,2]
[334387814,1723021611643,1050.25607038,0.00010077,2]
[334387815,1723021617391,200.0,0.00010165,2]
[334387816,1723021626507,449.38282127,0.00010077,2]
[334387817,1723021639993,299.86038507,0.00010077,2]
[334387818,1723021646813,162.66461313,0.00010077,2]
[334387819,1723021650734,150.0,0.00023455,120]
[334387820,1723021660532,413.027299,0.00010077,2]
[334387821,1723021665640,203.3949505,0.00010077,2]
[334387822,1723021696647,1050.25607038,0.00010077,2]
[334387823,1723021725256,456.0,0.00010061,2]
[334387824,1723021733982,299.86038507,0.00010077,2]
[334387825,1723021743808,162.66461313,0.00010077,2]
[334387826,1723021758825,162.66461313,0.00010077,2]
[334387827,1723021792650,1050.25607038,0.00010077,2]
[334387840,1723021831987,299.86038507,0.00010077,2]
[334387843,1723021832456,-250.0,0.000105,3]
[334387844,1723021832468,-562.4996314,0.000105,3]
[334387845,1723021832480,-2114.71810621,0.000105,3]
[334387846,1723021832491,-2000.0,0.000105,3]
[334387899,1723021833570,-72.78226239,0.000105,3]
[334387900,1723021833580,-300.0,0.00010599,2]
[334387901,1723021833593,-300.0,0.00010599,2]
[334387902,1723021833603,-133.99372398,0.000106,3]
[334387903,1723021833615,-940.59850808,0.000106,3]
[334387904,1723021833626,-8925.40776794,0.000106,3]
[334387905,1723021833636,-15000.0,0.000107,3]
[334387906,1723021833646,-15733.52175305,0.0001077,2]
[334387907,1723021833655,-150.0,0.00010779,2]
[334387908,1723021833665,-10329.2882,0.0001078,2]
[334387909,1723021833676,-12839.1733,0.0001078,2]
[334387910,1723021833686,-9673.6595,0.0001078,2]
[334387911,1723021833695,-20000.0,0.000108,3]
[334387912,1723021833705,-301.62112266,0.00010883,2]
[334387913,1723021833714,-2500.0,0.0001089,2]
[334387914,1723021833723,-2828.3531,0.00010899,2]
[334387915,1723021833732,-561.2732721,0.000109,2]
[334387916,1723021833742,-561.2732721,0.000109,2]
[334387917,1723021833751,-165.56065458,0.000109,2]
[334387919,1723021833760,-165.01000426,0.000109,2]
[334387920,1723021833774,-25000.0,0.000109,3]
[334387921,1723021833784,-2500.0,0.000109,2]
[334387922,1723021833794,-321.92762054,0.000109,2]
[334387924,1723021833804,-173.03877897,0.000109,2]
[334387926,1723021833814,-499.99,0.00010958,2]
[334387928,1723021833824,-500.0,0.00010958,2]
[334387930,1723021833834,-500.0,0.00010958,2]
[334387932,1723021833844,-500.0,0.00010958,2]
[334387934,1723021833854,-500.0,0.00010958,2]
[334387936,1723021833863,-500.0,0.00010958,2]
[334387938,1723021833879,-500.0,0.00010958,2]
[334387940,1723021833889,-499.999999,0.00010958,2]
[334387942,1723021833900,-500.0,0.00010958,2]
[334387944,1723021833909,-500.0,0.00010958,2]
[334387946,1723021833918,-500.0,0.00010958,2]
[334387948,1723021833927,-500.0,0.00010958,2]
[334387950,1723021833937,-500.0,0.00010958,2]
[334387952,1723021833947,-500.0,0.00010958,2]
[334387954,1723021833956,-500.0,0.00010958,2]
[334387956,1723021833966,-500.0,0.00010958,2]
[334387958,1723021833976,-500.0,0.00010958,2]
[334387960,1723021833986,-500.0,0.00010958,2]
[334387962,1723021833996,-500.0,0.00010958,2]
[334387964,1723021834006,-500.0,0.00010958,2]
[334387966,1723021834016,-500.0,0.00010958,2]
[334387968,1723021834034,-500.0,0.00010958,2]
[334387970,1723021834044,-500.0,0.00010958,2]
[334387972,1723021834053,-500.0,0.00010958,2]
[334387974,1723021834063,-500.0,0.00010958,2]
[334387976,1723021834073,-500.0,0.00010958,2]
[334387978,1723021834082,-500.0,0.00010958,2]
[334387980,1723021834091,-250.0,0.00010959,2]
[334387982,1723021834101,-333.52,0.00010959,2]
[334387984,1723021834111,-500.0,0.00010989,2]
[334387987,1723021834121,-500.0,0.00010989,2]
[334387989,1723021834131,-500.0,0.00010989,2]
[334387991,1723021834140,-500.0,0.00010989,2]
[334387993,1723021834149,-500.0,0.00010989,2]
[334387995,1723021834159,-333.10142945,0.00010989,2]
[334387997,1723021834168,-160.9545074,0.00010997,2]
[334387999,1723021834178,-500.0,0.00010998,2]
[334388001,1723021834191,-1580.35,0.00010999,2]
[334388003,1723021834200,-480.93381805,0.00010999,2]
[334388005,1723021834210,-500.0,0.00010999,2]
[334388007,1723021834219,-408.65299467,0.00010999,2]
[334388009,1723021834229,-2018.19,0.00011,2]
[334388011,1723021834238,-711625.44539458,0.00011,2]
[334388283,1723021837968,-33108.1238901,0.00011,2]
[334388284,1723021837979,-2440.67190885,0.00011,2]
[334388285,1723021838098,-540.96498319,0.00011,2]
[334388286,1723021838159,-26447.38168852,0.00011,2]
[334388287,1723021838171,-5979.78453988,0.00011,2]
[334388288,1723021838287,-866.82892756,0.00011,2]
[334388289,1723021838343,-617.54165367,0.00011,2]
[334388713,1723021842627,-4491.7777471,0.00011,2]
[334388716,1723021842643,-5077.14760424,0.00011,2]
[334388720,1723021842663,-42953.24276413,0.00011,2]
[334388723,1723021842674,-320.86331236,0.00011,2]
[334388744,1723021842802,-588.950825,0.00011,2]